Cogmind - Beta 14 @@@ ROGUE MODE // 2024.09.11 @ 14:54:29 Player: ZarZap Result: Destroyed by Y-45 Defender with Beam Rifle Performance ------------- Evolutions (1) 500 Regions Visited (3) 600 Robots Destroyed (15) 75 Value Destroyed (284) 284 Prototype IDs (1) 20 Alien Tech Used (0) 0 Bonus (0) 0 TOTAL SCORE: 1479 Bonus ------- None Cogmind --------- Core Integrity 0/400 Matter 293/300 Energy 18/100 System Corruption 2% Temperature Cool (27) Movement Core (150) Ox2 Location -9/Storage Parts ------- > --- POWER (2) -------- (None) > --- PROPULSION (2) --- (None) > --- UTILITY (2) ------ Large Storage Unit Weight Redist. System > --- WEAPON (3) ------- (None) > --- INVENTORY (15) --- (None) Peak State ------------ > --- POWER ------------ Light Ion Engine > --- PROPULSION ------- Wheel Wheel > --- UTILITY ---------- Large Storage Unit Weight Redist. System > --- WEAPON ----------- Small Laser Advanced Beam Cannon Assault Rifle > --- INVENTORY -------- (None) [Rating: 11] Favorites ----------- Power Ion Engine Engine Ion Engine Propulsion Wheel Wheel Wheel Utility Large Storage Unit Device Weight Redist. System Storage Large Storage Unit Weapon Assault Rifle Energy Gun Small Laser Energy Cannon Advanced Beam Cannon Ballistic Gun Assault Rifle Launcher Grenade Launcher Build | -11 -10 -9 -9 ------- Run | Yrd Mat Mat Sto Slots Evolved 2 | . . 2 . Power 1 | . . 1 . Propulsion . | . . . . Utility . | . . . . Weapon 1 | . . 1 . Parts Attached 15 | 6 4 3 2 Power 2 | 1 . 1 . Engine 2 | 1 . 1 . Core . | . . . . Reactor . | . . . . Propulsion 2 | 2 . . . Treads . | . . . . Leg . | . . . . Wheel 2 | 2 . . . Hover . | . . . . Flight . | . . . . Utility 3 | 1 1 1 . Device 1 | . . 1 . Storage 2 | 1 1 . . Processor . | . . . . Hackware . | . . . . Protection . | . . . . Artifact . | . . . . Weapon 8 | 2 3 1 2 Energy Gun 3 | 1 1 1 . Energy Cannon 2 | . . . 2 Ballistic Gun 1 | 1 . . . Ballistic Cannon . | . . . . Launcher 2 | . 2 . . Special Weapon . | . . . . Impact Weapon . | . . . . Slashing Weapon . | . . . . Piercing Weapon . | . . . . Special Melee Weapon . | . . . . Unidentified Prototypes 1 | . . . 1 Parts Lost 8 | . . 1 7 Power 2 | . . 1 1 Propulsion 2 | . . . 2 Utility . | . . . . Weapon 4 | . . . 4 Highest Loss Streak 6 | . . 1 6 To Critical Strikes . | . . . . Average Slot Usage (%) 79 | . 85 79 72 Engine 9 | . 14 8 5 Wheel 23 | . 28 22 19 Device 5 | . . 4 11 Storage 12 | . 14 11 11 Energy Gun 9 | . 9 11 8 Energy Cannon 2 | . . . 9 Ballistic Gun 10 | . 14 11 6 Launcher 5 | . 4 11 1 Peak Build Rating 11 | 6 7 9 11 Average Rating 7 | 4 6 7 8 On Entrance 5 | . 6 6 9 Naked Turns . | . . . . Heaviest Build 31 | 13 30 31 30 Greatest Support 26 | 20 20 26 26 Greatest Overweight (x) 1 | 1 1 1 1 Average Overweight (x) . | . . . . Largest Inventory Capacity 15 | 8 15 15 15 Average Capacity 12 | 6 11 15 15 Most Carried 1 | . 1 . 1 Average Carried . | . . . . Final Capacity 15 | 8 15 15 15 Final Carried 1 | . 1 . . Class Distribution -------------------- 57% | Mutant 42% | Gunner Dominant Class ---------------- Mutant | -10/Materials Gunner | -9/Materials Mutant | -9/Storage Resources | -11 -10 -9 -9 ----------- Run | Yrd Mat Mat Sto Matter Collected 430 | 153 27 115 135 Remotely . | . . . . Salvage Created 353 | . 83 135 135 Parts 29 | . 7 12 10 Haulers Intercepted . | . . . . Recyclers Shooed . | . . . . Parts Field Recycled . | . . . . Retrieved Matter . | . . . . Parts Self-Destructed . | . . . . Prevented . | . . . . Kills | -11 -10 -9 -9 ------- Run | Yrd Mat Mat Sto Combat Hostiles Destroyed 12 | . 5 4 3 Guns 4 | . 2 1 1 Cannons 2 | . . . 2 AOE 6 | . 3 3 . Classes Destroyed 6 | . 3 2 1 Worker 1 | . 1 . . Recycler 1 | . . 1 . Watcher 1 | . . 1 . Swarmer 7 | . 3 4 . Grunt 4 | . 2 . 2 Sentry 1 | . . . 1 Best Kill Streak 6 | . 3 6 3 Combat Bots Only 4 | . 3 4 3 Max Kills in Single Turn 3 | . 2 3 1 Gunslinging . | . . . . Exploded 2 | . 1 2 . Melee . | . . . . Uniques/NPCs Destroyed . | . . . . Combat | -11 -10 -9 -9 -------- Run | Yrd Mat Mat Sto Hostile Shots Fired 89 | . 17 12 60 Missed 24 | . 6 2 16 Damage Taken 1086 | . 139 122 825 Core 434 | . 31 17 386 Absorbed by Shields . | . . . . Core Remaining (%) 93 | 100 87 . . Volleys Fired 21 | . 10 4 7 Largest 3 | . 2 3 3 Hottest 128 | . 60 90 128 Shots Fired 47 | . 15 12 20 Gun 33 | . 12 8 13 Cannon 7 | . . . 7 Launcher 7 | . 3 4 . Special . | . . . . Kinetic 20 | . 10 4 6 Thermal 20 | . 2 4 14 Explosive 7 | . 3 4 . Electromagnetic . | . . . . Robot Hit Streak 6 | . 5 1 6 Robot Miss Streak 3 | . 2 3 2 Penetration Max . | . . . . Secondary Targets . | . . . . Shots Hit Robots 28 | . 9 4 15 Core Hits 26 | . 10 9 7 Critical Kills . | . . . . Critical Parts Destroyed . | . . . . Critical Strikes . | . . . . Melee Attacks . | . . . . Impact . | . . . . Slashing . | . . . . Piercing . | . . . . Sneak Attacks . | . . . . Combat Hostiles . | . . . . Follow-up Attacks . | . . . . Damage Inflicted 704 | . 291 155 258 Guns 239 | . 84 38 117 Cannons 121 | . . . 121 Explosions 324 | . 207 117 . Melee . | . . . . Ramming 20 | . . . 20 Kinetic 142 | . 62 28 52 Thermal 218 | . 22 10 186 Explosive 324 | . 207 117 . Electromagnetic . | . . . . Impact . | . . . . Slashing . | . . . . Piercing . | . . . . Highest Corruption 2 | . . . 2 Average Corruption 2 | . . . 2 Corruption Purged . | . . . . Corruption Blocked . | . . . . Effects 1 | . . . 1 Message Errors 1 | . . . 1 Overload Shots . | . . . . Overflow Damage . | . . . . Projectiles . | . . . . Explosions . | . . . . Melee . | . . . . Knockbacks . | . . . . Impact . | . . . . Kinetic . | . . . . Secondary . | . . . . Self-Inflicted Damage 77 | . 37 30 10 Shots 2 | . 1 1 . Rammed 1 | . . . 1 Targets Rammed 1 | . . . 1 Kicked . | . . . . Crushed . | . . . . Highest Temperature 372 | . 2 21 372 Average Temperature 160 | . 2 9 195 Received Heat Transfer 390 | . 30 9 351 Siege Activations . | . . . . Robots Corrupted . | . . . . Combat Hostiles . | . . . . Parts Fried . | . . . . Impact Corruptions . | . . . . Robots Melted . | . . . . Combat Hostiles . | . . . . Parts Melted . | . . . . Heat Transferred 447 | . 50 25 372 Parts Sabotaged . | . . . . Parts Stolen . | . . . . Parts Stripped . | . . . . Power Chain Reactions . | . . . . Alert | -11 -10 -9 -9 ------- Run | Yrd Mat Mat Sto Peak Influence 234 | . 181 234 183 Initial 98 | . . 76 98 Average 107 | . 87 155 134 Maximum Alert Level 1 | . . 1 . Low Security (%) 87 | 100 100 53 100 Level 1 12 | . . 46 . Level 2 . | . . . . Level 3 . | . . . . Level 4 . | . . . . Level 5 . | . . . . High Security . | . . . . Max Security . | . . . . Squads Dispatched 2 | . 1 . 1 Investigation . | . . . . Extermination . | . . . . Reinforcement 2 | . 1 . 1 Assault . | . . . . Garrison . | . . . . Intercept . | . . . . Searches Triggered . | . . . . Construction Impeded . | . . . . Haulers Reinforced . | . . . . Active Scanning Responses . | . . . . Cargo Convoy Interrupts . | . . . . Stealth | -11 -10 -9 -9 --------- Run | Yrd Mat Mat Sto Distress Signals 2 | . 1 . 1 Communications Jammed . | . . . . Distress Signals . | . . . . Times Spotted 24 | . 8 6 10 Peak Tracking Total 6 | . 4 5 6 Tactical Retreats 1 | . 1 . . Traps | -11 -10 -9 -9 ------- Run | Yrd Mat Mat Sto Traps Triggered 1 | . . . 1 Indirectly . | . . . . Trap Hack Attempts . | . . . . Triggered . | . . . . Disarmed . | . . . . Reprogrammed . | . . . . Reused . | . . . . Traps Extracted . | . . . . Installed . | . . . . Triggered . | . . . . Machines | -11 -10 -9 -9 ---------- Run | Yrd Mat Mat Sto Machines Disabled 1 | . 1 . . Max in Single Turn 1 | . 1 . . Machines Repaired . | . . . . Machines Dismantled . | . . . . Machines Sabotaged . | . . . . Overloaded Fab Kills . | . . . . Hacking | -11 -10 -9 -9 --------- Run | Yrd Mat Mat Sto Machines Accessed . | . . . . Terminals . | . . . . Fabricators . | . . . . Repair Stations . | . . . . Recycling Units . | . . . . Scanalyzers . | . . . . Garrison Access . | . . . . Total Hacks . | . . . . Successful . | . . . . Failed . | . . . . Catastrophic . | . . . . Database Lockouts . | . . . . Manual . | . . . . Terminals . | . . . . Fabricators . | . . . . Repair Stations . | . . . . Recycling Units . | . . . . Scanalyzers . | . . . . Garrison Access . | . . . . Terminal Hacks . | . . . . Fabricator Hacks . | . . . . Repair Station Hacks . | . . . . Recycling Unit Hacks . | . . . . Scanalyzer . | . . . . Garrison Access Hacks . | . . . . Unauthorized Hacks . | . . . . Terminals . | . . . . Fabricators . | . . . . Repair Stations . | . . . . Recycling Units . | . . . . Scanalyzers . | . . . . Garrison Access . | . . . . Data Cores Recovered . | . . . . Used . | . . . . Hacking Detections . | . . . . Full Trace Events . | . . . . Feedback Events . | . . . . Feedback Blocked . | . . . . Robot Schematics Acquired . | . . . . Robots Built . | . . . . Authchips . | . . . . Time . | . . . . Total Robot Build Rating . | . . . . Part Schematics Acquired . | . . . . Parts Built . | . . . . Authchips . | . . . . Time . | . . . . Total Part Build Rating . | . . . . Parts Repaired . | . . . . Time . | . . . . Parts Recycled . | . . . . Recycled Matter . | . . . . Retrieved Matter . | . . . . Retrieved Components . | . . . . Parts Scanalyzed . | . . . . Part Schematics Acquired . | . . . . Parts Damaged . | . . . . Bothacking | -11 -10 -9 -9 ------------ Run | Yrd Mat Mat Sto Used RIF Installer . | . . . . Robots Hacked . | . . . . Non-combat . | . . . . Combat . | . . . . Robot Hacks Applied . | . . . . Relay Couplers Released . | . . . . Fabnet Peak Effective % . | . . . . Robots Rewired . | . . . . Allies Hacked . | . . . . Hacks Repelled . | . . . . Allies | -11 -10 -9 -9 -------- Run | Yrd Mat Mat Sto Total Allies . | . . . . Largest Group . | . . . . Highest-Rated Group . | . . . . Highest-Rated Ally . | . . . . Total Orders . | . . . . Ally Attacks . | . . . . Total Damage . | . . . . Kills . | . . . . Allies Corrupted . | . . . . Allies Melted . | . . . . Intel | -11 -10 -9 -9 ------- Run | Yrd Mat Mat Sto Robot Analysis Total . | . . . . Derelict Logs Recovered . | . . . . Drone Launches . | . . . . Drone Recoveries . | . . . . Exploration | -11 -10 -9 -9 ------------- Run | Yrd Mat Mat Sto Turns Passed 307 | 42 96 82 87 Spaces Moved 233 | 42 75 70 46 Core 4 | 4 . . . Treads . | . . . . Legs . | . . . . Wheels 229 | 38 75 70 46 Hover . | . . . . Flight . | . . . . Fastest Speed 50 | 50 80 80 80 Average Speed 87 | 78 85 93 90 Slowest Speed 100 | 100 95 95 95 Overloaded Moves . | . . . . Propulsion Burnouts . | . . . . Robots Hopped . | . . . . Cave-ins Triggered . | . . . . Exploration Rate (%) 12 | 3 21 10 14 Regions Visited 3 Branch Regions 1 Pre-discovered Areas . | . . . . Known Exits Taken . | . . . . Unknown Exits Taken 3 | 1 1 1 . Scrap Searched . | . . . . Spaces Dug . | . . . . Terrain Destroyed 46 | . 13 33 . Melee . | . . . . Projectile . | . . . . AOE 46 | . 13 33 . Terrain Rammed . | . . . . Walls Destroyed . | . . . . Machines Disabled . | . . . . Actions | -11 -10 -9 -9 --------- Run | Yrd Mat Mat Sto Total 289 | 47 90 76 76 Wait 18 | . . . 18 Move 230 | 41 74 69 46 Hop . | . . . . Pick Up 2 | . 1 . 1 Fast Attach 10 | 6 1 2 1 Attach 2 | . . 1 1 Detach . | . . . . Swap 3 | . 3 . . Drop 2 | . 1 . 1 Fire 21 | . 10 4 7 Melee . | . . . . Ram 1 | . . . 1 Kick . | . . . . Crush . | . . . . Escape Stasis . | . . . . Rewire . | . . . . Trap . | . . . . Miscellaneous . | . . . . Route ------- -11/Scrapyard -10/Materials -9/Materials -9/Storage History --------- Turn | Location | Event 27 | -11/Scrapyard | Discovered new exit (range 15) 43 | -11/Scrapyard | Entered Materials 125 | -10/Materials | Discovered new exit (range 16) 139 | -10/Materials | Entered another Materials area 139 | -9/Materials | Evolved 2 slots: Power x1, Weapon x1 203 | -9/Materials | Discovered new exit (range 11) 221 | -9/Materials | Entered Storage 303 | -9/Storage | Core integrity fell below 50% 306 | -9/Storage | Core integrity fell below 20% 308 | -9/Storage | Destroyed by Y-45 Defender with Beam Rifle Last Messages --------------- 00276_ Assault Rifle destroyed. 00277_ Y-45 Defender destroyed. 00277_ R-06 Scavenger collects Ion Engine. 00280_ Critical hit (Burn: +37). 00281_ R-06 Scavenger collects Heat Sink. 00281_ M-13 Machinist repairs G-47 Trooper. 00281_ Slammed into U-05 Engineer. 00282_ Acquired 135 matter. 00283_ M-13 Machinist repairs Aluminum Leg. 00284_ R-06 Scavenger collects Aluminum Leg. 00285_ Wheel destroyed. 00285_ Critical hit (Burn: +37). 00287_ Sml. Laser destroyed. 00302_ Compression Vault explodes. 00302_ Adv. Beam Cannon destroyed. 00302_ G-34 Mercenary destroyed. 00302_ K-01 Serf collects debris. 00302_ K-01 Serf cleans the Transfer Shaft. 00304_ K-01 Serf collects debris. 00305_ Wheel destroyed. Map ----- +----------------------------------------------------+ | | | | | | | | | | | | | | | | | | | | | | | | | | | ?????????????????????????????######??????????????? | | ?????????????????????????????# """#??????????????? | | ?????????????????????????????#""R"#??????????????? | | ????????######################"" "################ | | ???????? | | ???????? =[ | | ???????? k [*! ] | | ???????????????#####um[###########+############### | | ???????????????????# ##### ## #?????????? | | ???????????????????# # # """ #?????????? | | ???????????????????# * # !o""" #?????????? | | ???????????????????# Y ! """ #?????????? | | ???????????????????# %g @ ]! #?????????? | | ???????????????????# Y """ #?????????? | | ???????????????????# """ #?????????? | | ???????????????????# """ +?????????? | | ???????????????????# # u #?????????? | | ??????????????????# # ##############?????????? | | ??????????????????# ??????????????????????? | | ??????????????????# ??????????????????????? | | ??????????????????# u ??????????????????????? | | ??????????????????# ###??????????????????????? | | ??????????????????###+###????????????????????????? | | ???????????????????? ???????????????????????????? | | ????????????????????""???????????????????????????? | | ?????????????????????????????????????????????????? | | ?????????????????????????????????????????????????? | | ?????????????????????????????????????????????????? | | ?????????????????????????????????????????????????? | | ?????????????????????????????????????????????????? | | ?????????????????????????????????????????????????? | | ?????????????????????????????????????????????????? | | ?????????????????????????????????????????????????? | | ?????????????????????????????????????????????????? | | ?????????????????????????????????????????????????? | | ?????????????????????????????????????????????????? | | ?????????????????????????????????????????????????? | +----------------------------------------------------+ Best States ------------- Heat Dissipation 28 Energy Generation 10 Energy Capacity 250 Matter Stores 283 Matter Capacity 300 Sight Range 16 Terrain Scan Density 10 Additional Mass Support 6 Evasion (%) 44 Item Schematics ----------------- None Robot Schematics ------------------ None Fabricated ------------ Nothing Alien Tech Used ----------------- None Achievements -------------- None Challenges ------------ None Game ------ Seed ResetCompanionComputer Manual? 0 Play Time 00:12:27 Cumulative 6.0 hours Start 2024.09.11 @ 14:40:43 End 2024.09.11 @ 14:54:29 Sessions 2 Manual Loads 0 Difficulty Rogue Special Mode None Game No. 25 Rogue 25 Adventurer 0 Explorer 0 Win Type - Total 0 Types 0/0/0/0/0/0/0/0/0 Lore% 3 Gallery% 13 Achievement% 12 Wizard Run 0 Options --------- Layout 2 ASCII 0 Keyboard 0 Movement Mouse Keybinds 0 Fullscreen 1 Font 16/SmallcapsGlow Map View 55x47 Zoom Use 9% Tactical HUD 1 Map Filters NONE Filters NONE Steam 1 RUN: 29508ef3-7442-4f93-a353-f14eb500159b